[Event "Late-Titled-Tuesday-Blitz-February-20-2024"]
[Site "Chess.com"]
[Date "2024.02.20"]
[Round "1"]
[White "gahryman"]
[Black "pr1105"]
[Result "1-0"]
[WhiteElo "2680"]
[BlackElo "2362"]
[TimeControl "180+1"]
[EndTime "14:07:57 PST"]
[Termination "gahryman won by resignation"]

1. e4 {[%clk 0:03:00.9]} 1... e5 {[%clk 0:02:56.2]} 2. Nf3 {[%clk 0:02:59.5]}
2... Nc6 {[%clk 0:02:53.2]} 3. Bc4 {[%clk 0:02:59.2]} 3... Bc5 {[%clk
0:02:50.7]} 4. c3 {[%clk 0:02:54.1]} 4... Nf6 {[%clk 0:02:50.3]} 5. d3 {[%clk
0:02:53.3]} 5... d6 {[%clk 0:02:47]} 6. O-O {[%clk 0:02:49.1]} 6... a5 {[%clk
0:02:44.5]} 7. Re1 {[%clk 0:02:43.7]} 7... h6 {[%clk 0:02:38.7]} 8. d4 {[%clk
0:02:14]} 8... Ba7 {[%clk 0:02:24.7]} 9. Na3 {[%clk 0:02:12.2]} 9... Bg4 {[%clk
0:02:16.9]} 10. Nb5 {[%clk 0:02:10.6]} 10... Bb6 {[%clk 0:02:16.6]} 11. a4
{[%clk 0:01:54.8]} 11... O-O {[%clk 0:02:07.1]} 12. h3 {[%clk 0:01:54.4]} 12...
Bh5 {[%clk 0:02:06.3]} 13. g4 {[%clk 0:01:54.2]} 13... Bg6 {[%clk 0:02:06.3]}
14. Nh4 {[%clk 0:01:54]} 14... Bh7 {[%clk 0:02:06.2]} 15. Nf5 {[%clk 0:01:53.7]}
15... Re8 {[%clk 0:01:52.1]} 16. d5 {[%clk 0:01:06]} 16... Ne7 {[%clk
0:01:43.8]} 17. Qf3 {[%clk 0:01:05.6]} 17... Bxf5 {[%clk 0:00:50.4]} 18. gxf5
{[%clk 0:01:04.9]} 18... c6 {[%clk 0:00:49.6]} 19. Kh1 {[%clk 0:00:39.6]} 19...
cxb5 {[%clk 0:00:18.5]} 20. Bxb5 {[%clk 0:00:38.4]} 20... Rf8 {[%clk 0:00:13.7]}
21. Rg1 {[%clk 0:00:38.2]} 21... Kh7 {[%clk 0:00:14.2]} 22. Bd2 {[%clk
0:00:22.3]} 22... g6 {[%clk 0:00:12.2]} 23. Qg3 {[%clk 0:00:17]} 23... Nfg8
{[%clk 0:00:08.3]} 24. Rg2 {[%clk 0:00:15.6]} 24... f6 {[%clk 0:00:03]} 25.
fxg6+ {[%clk 0:00:14.8]} 25... Kg7 {[%clk 0:00:03.6]} 26. Rag1 {[%clk
0:00:13.5]} 26... Rc8 {[%clk 0:00:03.4]} 27. Qh4 {[%clk 0:00:12.3]} 27... Rc5
{[%clk 0:00:02.7]} 28. Be3 {[%clk 0:00:10.7]} 28... Rxb5 {[%clk 0:00:02.6]} 29.
axb5 {[%clk 0:00:11.6]} 29... Bxe3 {[%clk 0:00:02.6]} 30. fxe3 {[%clk
0:00:12.5]} 30... Qb6 {[%clk 0:00:02.9]} 31. c4 {[%clk 0:00:11.6]} 31... Qc5
{[%clk 0:00:03.1]} 32. b3 {[%clk 0:00:10.3]} 32... Qxe3 {[%clk 0:00:03.5]} 33.
Qg4 {[%clk 0:00:10]} 33... Qc5 {[%clk 0:00:03.3]} 34. Qe6 {[%clk 0:00:10.1]}
34... b6 {[%clk 0:00:02.2]} 35. Rf1 {[%clk 0:00:09.9]} 35... Qc8 {[%clk
0:00:02.5]} 36. Rgf2 {[%clk 0:00:10]} 36... Qxe6 {[%clk 0:00:02.6]} 37. dxe6
{[%clk 0:00:10.9]} 37... Rc8 {[%clk 0:00:03.1]} 38. Rd2 {[%clk 0:00:11.5]} 38...
Rd8 {[%clk 0:00:03.1]} 39. Rfd1 {[%clk 0:00:10.7]} 39... Nxg6 {[%clk 0:00:01.8]}
40. Rxd6 {[%clk 0:00:11.2]} 40... Rxd6 {[%clk 0:00:02.6]} 41. Rxd6 {[%clk
0:00:11.5]} 41... N8e7 {[%clk 0:00:03.5]} 42. Rxb6 {[%clk 0:00:11.7]} 42... f5
{[%clk 0:00:04.1]} 43. Rb8 {[%clk 0:00:10.7]} 43... Kf6 {[%clk 0:00:04.5]} 44.
b6 {[%clk 0:00:11.2]} 44... fxe4 {[%clk 0:00:04.9]} 45. b7 {[%clk 0:00:11.6]}
45... e3 {[%clk 0:00:05.8]} 46. Rf8+ {[%clk 0:00:11.2]} 46... Kxe6 {[%clk
0:00:05.2]} 47. b8=Q {[%clk 0:00:12.1]} 47... e2 {[%clk 0:00:05.9]} 48. Qb6+
{[%clk 0:00:09.9]} 48... Kd7 {[%clk 0:00:05.1]} 49. Qe3 {[%clk 0:00:10.8]} 49...
Nxf8 {[%clk 0:00:05.2]} 50. Qxe2 {[%clk 0:00:10.6]} 50... Ne6 {[%clk 0:00:06.1]}
51. Qd2+ {[%clk 0:00:11.2]} 51... Ke8 {[%clk 0:00:05.5]} 52. Qxh6 {[%clk
0:00:12.1]} 52... Nf4 {[%clk 0:00:04.8]} 53. Qh8+ {[%clk 0:00:11.7]} 53... Kd7
{[%clk 0:00:03.6]} 54. Qxe5 {[%clk 0:00:12.6]} 54... Ne6 {[%clk 0:00:04.4]} 55.
Qxa5 {[%clk 0:00:12.8]} 1-0

[Event "Late-Titled-Tuesday-Blitz-February-20-2024"]
[Site "Chess.com"]
[Date "2024.02.20"]
[Round "1"]
[White "ansko1999"]
[Black "Walter_White_Poland"]
[Result "1-0"]
[WhiteElo "2688"]
[BlackElo "2363"]
[TimeControl "180+1"]
[EndTime "14:08:03 PST"]
[Termination "ansko1999 won on time"]

1. Nf3 {[%clk 0:03:00.9]} 1... d5 {[%clk 0:02:59.4]} 2. e3 {[%clk 0:02:58.1]}
2... Nf6 {[%clk 0:02:59]} 3. c4 {[%clk 0:02:57]} 3... e6 {[%clk 0:02:59.1]} 4.
Nc3 {[%clk 0:02:56.2]} 4... Be7 {[%clk 0:02:59.2]} 5. b3 {[%clk 0:02:55.4]} 5...
O-O {[%clk 0:02:57.9]} 6. Bb2 {[%clk 0:02:55.7]} 6... c6 {[%clk 0:02:58]} 7. d4
{[%clk 0:02:52.6]} 7... a6 {[%clk 0:02:57.1]} 8. Bd3 {[%clk 0:02:34.9]} 8... b5
{[%clk 0:02:56.9]} 9. O-O {[%clk 0:02:34.7]} 9... Bb7 {[%clk 0:02:56.6]} 10. c5
{[%clk 0:02:30.9]} 10... a5 {[%clk 0:02:51.9]} 11. Ne2 {[%clk 0:02:28.9]} 11...
Ne8 {[%clk 0:02:41.2]} 12. Qc2 {[%clk 0:02:26.4]} 12... g6 {[%clk 0:02:40.8]}
13. e4 {[%clk 0:02:16.8]} 13... Ng7 {[%clk 0:02:38.8]} 14. e5 {[%clk 0:02:11.7]}
14... Nd7 {[%clk 0:02:30.6]} 15. a3 {[%clk 0:02:08.5]} 15... f5 {[%clk
0:02:28.2]} 16. exf6 {[%clk 0:01:46.2]} 16... Bxf6 {[%clk 0:02:27.2]} 17. b4
{[%clk 0:01:44.2]} 17... axb4 {[%clk 0:02:07.2]} 18. axb4 {[%clk 0:01:45.1]}
18... Qc7 {[%clk 0:02:06.9]} 19. Rae1 {[%clk 0:01:21.6]} 19... Rae8 {[%clk
0:02:04.2]} 20. Qd2 {[%clk 0:00:56.9]} 20... e5 {[%clk 0:02:02.2]} 21. dxe5
{[%clk 0:00:56.4]} 21... Nxe5 {[%clk 0:02:02.3]} 22. Nxe5 {[%clk 0:00:54.9]}
22... Bxe5 {[%clk 0:02:02.4]} 23. Bxe5 {[%clk 0:00:54.8]} 23... Rxe5 {[%clk
0:01:53.8]} 24. Nd4 {[%clk 0:00:53.7]} 24... Rfe8 {[%clk 0:01:23.3]} 25. Qf4
{[%clk 0:00:34.9]} 25... Qe7 {[%clk 0:01:19.5]} 26. Rxe5 {[%clk 0:00:31.6]}
26... Qxe5 {[%clk 0:01:20.4]} 27. Qxe5 {[%clk 0:00:31.4]} 27... Rxe5 {[%clk
0:01:21.2]} 28. Ra1 {[%clk 0:00:31.4]} 28... Re7 {[%clk 0:00:51.9]} 29. Kf1
{[%clk 0:00:22.3]} 29... Kf7 {[%clk 0:00:49.7]} 30. Ra7 {[%clk 0:00:20.4]} 30...
Ne6 {[%clk 0:00:41]} 31. Nxe6 {[%clk 0:00:12.8]} 31... Kxe6 {[%clk 0:00:40.6]}
32. Ke2 {[%clk 0:00:10]} 32... Ke5 {[%clk 0:00:20.5]} 33. Ke3 {[%clk 0:00:07.7]}
33... d4+ {[%clk 0:00:19.2]} 34. Kd2 {[%clk 0:00:08.3]} 34... Rf7 {[%clk
0:00:11.5]} 35. f3 {[%clk 0:00:08]} 35... Kf6 {[%clk 0:00:08.3]} 36. Be4 {[%clk
0:00:07]} 36... h6 {[%clk 0:00:05.1]} 37. h4 {[%clk 0:00:06.4]} 37... g5 {[%clk
0:00:05.2]} 38. h5 {[%clk 0:00:04.9]} 38... Re7 {[%clk 0:00:04.6]} 39. Kd3
{[%clk 0:00:04.6]} 39... Rd7 {[%clk 0:00:04.7]} 40. Kd2 {[%clk 0:00:03.7]} 40...
Ke5 {[%clk 0:00:04.7]} 41. g3 {[%clk 0:00:04.3]} 41... g4 {[%clk 0:00:04.4]} 42.
Kd3 {[%clk 0:00:04]} 42... gxf3 {[%clk 0:00:04.6]} 43. Bxf3 {[%clk 0:00:04.9]}
43... Rf7 {[%clk 0:00:04.5]} 44. Ke2 {[%clk 0:00:04.7]} 44... Kf6 {[%clk
0:00:03.8]} 45. Be4 {[%clk 0:00:04.8]} 45... Re7 {[%clk 0:00:04.1]} 46. Kd3
{[%clk 0:00:05.4]} 46... Kg5 {[%clk 0:00:04.7]} 47. Bg6 {[%clk 0:00:05.2]} 47...
Kg4 {[%clk 0:00:04.3]} 48. Kxd4 {[%clk 0:00:05.5]} 48... Kxg3 {[%clk 0:00:04.7]}
49. Kc3 {[%clk 0:00:05.2]} 49... Kf4 {[%clk 0:00:04.8]} 50. Kd4 {[%clk
0:00:05.5]} 50... Rd7+ {[%clk 0:00:04.5]} 51. Kc3 {[%clk 0:00:06.1]} 51... Ke3
{[%clk 0:00:04.6]} 52. Bf5 {[%clk 0:00:05.1]} 52... Re7 {[%clk 0:00:04]} 53. Bc8
{[%clk 0:00:04.6]} 53... Bxc8 {[%clk 0:00:01.6]} 54. Rxe7+ {[%clk 0:00:05.5]}
1-0

[Event "Late-Titled-Tuesday-Blitz-February-20-2024"]
[Site "Chess.com"]
[Date "2024.02.20"]
[Round "1"]
[White "Piotrek1979"]
[Black "SchmakAttack"]
[Result "0-1"]
[WhiteElo "2427"]
[BlackElo "2814"]
[TimeControl "180+1"]
[EndTime "14:08:05 PST"]
[Termination "SchmakAttack won by resignation"]

1. Nf3 {[%clk 0:02:58.3]} 1... d5 {[%clk 0:02:59]} 2. e3 {[%clk 0:02:58.3]} 2...
c5 {[%clk 0:02:58.7]} 3. b3 {[%clk 0:02:58.3]} 3... Nc6 {[%clk 0:02:57.9]} 4.
Bb5 {[%clk 0:02:58.6]} 4... e6 {[%clk 0:02:57.8]} 5. Bb2 {[%clk 0:02:57.7]} 5...
Ne7 {[%clk 0:02:57.7]} 6. O-O {[%clk 0:02:51]} 6... a6 {[%clk 0:02:57.8]} 7. Be2
{[%clk 0:02:50.3]} 7... d4 {[%clk 0:02:57.5]} 8. Re1 {[%clk 0:02:47.2]} 8... g6
{[%clk 0:02:55.3]} 9. exd4 {[%clk 0:02:45.9]} 9... cxd4 {[%clk 0:02:56.2]} 10.
Bf1 {[%clk 0:02:36.4]} 10... Bg7 {[%clk 0:02:55.7]} 11. a4 {[%clk 0:02:36]}
11... O-O {[%clk 0:02:51.7]} 12. Na3 {[%clk 0:02:36.3]} 12... e5 {[%clk
0:02:41.8]} 13. Nc4 {[%clk 0:02:33.1]} 13... f6 {[%clk 0:02:28.7]} 14. a5 {[%clk
0:02:32.9]} 14... Be6 {[%clk 0:02:21.8]} 15. h3 {[%clk 0:02:31.4]} 15... g5
{[%clk 0:02:04]} 16. g3 {[%clk 0:02:21.8]} 16... Ng6 {[%clk 0:01:59.5]} 17. d3
{[%clk 0:02:04]} 17... Re8 {[%clk 0:01:50.7]} 18. Nfd2 {[%clk 0:02:03]} 18...
Bf8 {[%clk 0:01:47.7]} 19. Bg2 {[%clk 0:01:57.7]} 19... Rc8 {[%clk 0:01:38.8]}
20. Qh5 {[%clk 0:01:56.2]} 20... Bb4 {[%clk 0:01:35.8]} 21. Be4 {[%clk
0:01:51.7]} 21... Bf7 {[%clk 0:01:34.8]} 22. Bf5 {[%clk 0:01:51.5]} 22... Rc7
{[%clk 0:01:27]} 23. Ne4 {[%clk 0:01:51]} 23... Bxe1 {[%clk 0:01:24.1]} 24. Rxe1
{[%clk 0:01:51.9]} 24... Bxc4 {[%clk 0:00:56.5]} 25. bxc4 {[%clk 0:01:49.2]}
25... Rg7 {[%clk 0:00:54.3]} 26. c5 {[%clk 0:01:26.1]} 26... Rf8 {[%clk
0:00:50.9]} 27. Be6+ {[%clk 0:01:16.3]} 27... Kh8 {[%clk 0:00:51.3]} 28. Nd6
{[%clk 0:01:14.1]} 28... Qxa5 {[%clk 0:00:49.4]} 29. Ra1 {[%clk 0:01:10.2]}
29... Qxc5 {[%clk 0:00:45]} 30. Nf5 {[%clk 0:01:10.4]} 30... Qxc2 {[%clk
0:00:36.5]} 31. Ba3 {[%clk 0:00:58]} 31... Qc3 {[%clk 0:00:36.9]} 32. Ra2 {[%clk
0:00:57.7]} 32... Nb4 {[%clk 0:00:34.2]} 33. Bxb4 {[%clk 0:00:52.2]} 33... Qxb4
{[%clk 0:00:35.1]} 34. Nxg7 {[%clk 0:00:50.9]} 34... Kxg7 {[%clk 0:00:36]} 35.
Rc2 {[%clk 0:00:50.5]} 35... Qe7 {[%clk 0:00:32.8]} 36. Bf5 {[%clk 0:00:49]}
36... b5 {[%clk 0:00:29.2]} 37. Rc6 {[%clk 0:00:47.4]} 37... b4 {[%clk
0:00:27.2]} 38. h4 {[%clk 0:00:47.5]} 38... gxh4 {[%clk 0:00:27.1]} 39. g4
{[%clk 0:00:47.8]} 39... Rb8 {[%clk 0:00:24.7]} 40. g5 {[%clk 0:00:47]} 40...
Rf8 {[%clk 0:00:24.5]} 41. Qh6+ {[%clk 0:00:46.8]} 41... Kg8 {[%clk 0:00:23.3]}
42. gxf6 {[%clk 0:00:43]} 42... Rxf6 {[%clk 0:00:23.2]} 43. Rc8+ {[%clk
0:00:42.5]} 43... Rf8 {[%clk 0:00:16.4]} 44. Bxg6 {[%clk 0:00:26.8]} 44... Rxc8
{[%clk 0:00:13.9]} 45. Bxh7+ {[%clk 0:00:27.4]} 45... Qxh7 {[%clk 0:00:10.9]}
46. Qe6+ {[%clk 0:00:28]} 46... Kg7 {[%clk 0:00:09]} 47. Qd7+ {[%clk 0:00:28.7]}
47... Kh6 {[%clk 0:00:08.6]} 48. Qxc8 {[%clk 0:00:28.7]} 48... Qg6+ {[%clk
0:00:08]} 49. Kh2 {[%clk 0:00:28.9]} 49... Qxd3 {[%clk 0:00:07.1]} 50. Qf8+
{[%clk 0:00:27.4]} 50... Kg5 {[%clk 0:00:07.3]} 51. Qe7+ {[%clk 0:00:26.5]}
51... Kf4 {[%clk 0:00:07.6]} 52. Qxh4+ {[%clk 0:00:26.2]} 52... Kf3 {[%clk
0:00:06.6]} 53. Qg3+ {[%clk 0:00:18.5]} 53... Ke2 {[%clk 0:00:07.1]} 54. Qxe5+
{[%clk 0:00:18.8]} 54... Kd2 {[%clk 0:00:07.3]} 55. f4 {[%clk 0:00:16.9]} 55...
b3 {[%clk 0:00:07.5]} 56. f5 {[%clk 0:00:15.9]} 56... b2 {[%clk 0:00:07.8]} 57.
f6 {[%clk 0:00:15]} 57... b1=Q {[%clk 0:00:08.1]} 58. f7 {[%clk 0:00:15.6]}
58... Qh7+ {[%clk 0:00:05.3]} 0-1

[Event "Late-Titled-Tuesday-Blitz-February-20-2024"]
[Site "Chess.com"]
[Date "2024.02.20"]
[Round "1"]
[White "egnfanclub"]
[Black "JakubPulpan"]
[Result "0-1"]
[WhiteElo "2378"]
[BlackElo "2717"]
[TimeControl "180+1"]
[EndTime "14:08:07 PST"]
[Termination "JakubPulpan won on time"]

1. e4 {[%clk 0:02:59.7]} 1... c6 {[%clk 0:02:58.4]} 2. d4 {[%clk 0:02:58.9]}
2... Na6 {[%clk 0:02:42.5]} 3. c4 {[%clk 0:02:50.2]} 3... Nc7 {[%clk 0:02:31.9]}
4. Nc3 {[%clk 0:02:50.2]} 4... d5 {[%clk 0:02:26.4]} 5. Nf3 {[%clk 0:02:47.8]}
5... e6 {[%clk 0:02:23.8]} 6. Bd3 {[%clk 0:02:42.9]} 6... Nf6 {[%clk 0:02:19.7]}
7. e5 {[%clk 0:02:42.3]} 7... dxc4 {[%clk 0:02:13.9]} 8. Bxc4 {[%clk 0:02:28.6]}
8... Nfd5 {[%clk 0:02:13.6]} 9. O-O {[%clk 0:02:27.9]} 9... Be7 {[%clk
0:02:11.6]} 10. a3 {[%clk 0:02:22.6]} 10... b5 {[%clk 0:02:11]} 11. Bb3 {[%clk
0:02:20.5]} 11... Nxc3 {[%clk 0:01:56.5]} 12. bxc3 {[%clk 0:02:20]} 12... Bb7
{[%clk 0:01:57.4]} 13. Qd3 {[%clk 0:02:14.4]} 13... c5 {[%clk 0:01:54.1]} 14. c4
{[%clk 0:02:08.1]} 14... bxc4 {[%clk 0:01:33.5]} 15. Bxc4 {[%clk 0:02:06.2]}
15... O-O {[%clk 0:01:20.8]} 16. dxc5 {[%clk 0:01:58.7]} 16... Qxd3 {[%clk
0:01:16.8]} 17. Bxd3 {[%clk 0:01:59.6]} 17... Bxf3 {[%clk 0:01:17.1]} 18. gxf3
{[%clk 0:01:59.4]} 18... Bxc5 {[%clk 0:01:17.9]} 19. Be4 {[%clk 0:01:49.3]}
19... Rad8 {[%clk 0:01:14.8]} 20. Be3 {[%clk 0:01:49]} 20... Bxe3 {[%clk
0:01:05.6]} 21. fxe3 {[%clk 0:01:49.9]} 21... Nd5 {[%clk 0:01:06.4]} 22. Bxd5
{[%clk 0:01:41.8]} 22... Rxd5 {[%clk 0:01:00.2]} 23. f4 {[%clk 0:01:41.3]} 23...
g6 {[%clk 0:00:43.1]} 24. Rfd1 {[%clk 0:01:23.5]} 24... Rfd8 {[%clk 0:00:31.8]}
25. Rxd5 {[%clk 0:01:23.3]} 25... Rxd5 {[%clk 0:00:32.7]} 26. Ra2 {[%clk
0:01:20.8]} 26... a5 {[%clk 0:00:30.2]} 27. Kf2 {[%clk 0:01:20.7]} 27... a4
{[%clk 0:00:27.5]} 28. Ke2 {[%clk 0:01:07.1]} 28... Rb5 {[%clk 0:00:26.9]} 29.
Kd3 {[%clk 0:01:05.1]} 29... Rb3+ {[%clk 0:00:26.9]} 30. Kd4 {[%clk 0:01:04.7]}
30... Kg7 {[%clk 0:00:27]} 31. h4 {[%clk 0:01:03.3]} 31... Kh6 {[%clk
0:00:27.2]} 32. e4 {[%clk 0:00:59.4]} 32... Kh5 {[%clk 0:00:27.3]} 33. f5 {[%clk
0:00:58.8]} 33... gxf5 {[%clk 0:00:22.3]} 34. exf5 {[%clk 0:00:59]} 34... exf5
{[%clk 0:00:23.2]} 35. Rf2 {[%clk 0:00:54.8]} 35... Kg4 {[%clk 0:00:22.8]} 36.
Rg2+ {[%clk 0:00:37.9]} 36... Kxh4 {[%clk 0:00:22.8]} 37. Rg7 {[%clk 0:00:37.3]}
37... f4 {[%clk 0:00:17.8]} 38. Rxh7+ {[%clk 0:00:37.2]} 38... Kg3 {[%clk
0:00:17.3]} 39. Rxf7 {[%clk 0:00:37.9]} 39... Rxa3 {[%clk 0:00:17.4]} 40. e6
{[%clk 0:00:37.4]} 40... Re3 {[%clk 0:00:18.1]} 41. Rg7+ {[%clk 0:00:21.3]}
41... Kf3 {[%clk 0:00:17.5]} 42. Kd5 {[%clk 0:00:20.7]} 42... a3 {[%clk
0:00:16.7]} 43. Ra7 {[%clk 0:00:20.5]} 43... Ke2 {[%clk 0:00:16.8]} 44. e7
{[%clk 0:00:18.8]} 44... f3 {[%clk 0:00:15.2]} 45. Kd6 {[%clk 0:00:14.2]} 45...
f2 {[%clk 0:00:14.4]} 46. Rxa3 {[%clk 0:00:11.8]} 46... Rxa3 {[%clk 0:00:10.2]}
47. e8=Q+ {[%clk 0:00:11.7]} 47... Re3 {[%clk 0:00:11]} 48. Qh5+ {[%clk
0:00:09.6]} 48... Ke1 {[%clk 0:00:07.3]} 49. Qh4 {[%clk 0:00:05.9]} 49... Ke2
{[%clk 0:00:02.7]} 50. Qg4+ {[%clk 0:00:04.1]} 50... Rf3 {[%clk 0:00:02.3]} 51.
Qe4+ {[%clk 0:00:02.7]} 51... Re3 {[%clk 0:00:02.9]} 52. Qg4+ {[%clk 0:00:02.5]}
52... Kf1 {[%clk 0:00:02.9]} 53. Qh4 {[%clk 0:00:01.5]} 53... Kg2 {[%clk
0:00:03]} 0-1

[Event "Late-Titled-Tuesday-Blitz-February-20-2024"]
[Site "Chess.com"]
[Date "2024.02.20"]
[Round "1"]
[White "jaskol95"]
[Black "Felix-Rose"]
[Result "1-0"]
[WhiteElo "2603"]
[BlackElo "2272"]
[TimeControl "180+1"]
[EndTime "14:08:07 PST"]
[Termination "jaskol95 won on time"]

1. d4 {[%clk 0:03:00]} 1... d5 {[%clk 0:02:58.9]} 2. Nc3 {[%clk 0:03:00.2]} 2...
Nf6 {[%clk 0:02:56.9]} 3. Bf4 {[%clk 0:03:00.3]} 3... c5 {[%clk 0:02:56.5]} 4.
e4 {[%clk 0:03:00.1]} 4... Nxe4 {[%clk 0:02:44.3]} 5. Nxe4 {[%clk 0:03:00]} 5...
dxe4 {[%clk 0:02:45.2]} 6. dxc5 {[%clk 0:03:00.9]} 6... Qa5+ {[%clk 0:02:44.5]}
7. c3 {[%clk 0:03:01.6]} 7... Qxc5 {[%clk 0:02:44]} 8. Qa4+ {[%clk 0:03:02.3]}
8... Nc6 {[%clk 0:02:40.7]} 9. Qxe4 {[%clk 0:03:02.6]} 9... g6 {[%clk
0:02:39.8]} 10. Nf3 {[%clk 0:03:01.5]} 10... Bg7 {[%clk 0:02:39.1]} 11. Rd1
{[%clk 0:03:01.1]} 11... O-O {[%clk 0:02:38.8]} 12. Be3 {[%clk 0:02:55.2]} 12...
Qa5 {[%clk 0:02:35.8]} 13. Bc4 {[%clk 0:02:55.6]} 13... Bf5 {[%clk 0:02:32.7]}
14. Qh4 {[%clk 0:02:55.3]} 14... b5 {[%clk 0:02:21.1]} 15. Bd5 {[%clk
0:02:36.8]} 15... Rac8 {[%clk 0:02:21.2]} 16. O-O {[%clk 0:02:33.6]} 16... b4
{[%clk 0:02:17.7]} 17. Ng5 {[%clk 0:00:59.9]} 17... h5 {[%clk 0:02:07.6]} 18. c4
{[%clk 0:00:26.7]} 18... Qxa2 {[%clk 0:01:55]} 19. h3 {[%clk 0:00:20.8]} 19...
e6 {[%clk 0:01:46.6]} 20. g4 {[%clk 0:00:17.3]} 20... exd5 {[%clk 0:01:45.3]}
21. gxf5 {[%clk 0:00:17.8]} 21... Qxc4 {[%clk 0:01:41.3]} 22. Qg3 {[%clk
0:00:17.9]} 22... h4 {[%clk 0:01:22.9]} 23. Qg2 {[%clk 0:00:13.6]} 23... a5
{[%clk 0:01:11.5]} 24. fxg6 {[%clk 0:00:12.5]} 24... fxg6 {[%clk 0:01:12.4]} 25.
Ne6 {[%clk 0:00:12.6]} 25... Rf6 {[%clk 0:01:00.4]} 26. Nxg7 {[%clk 0:00:13.1]}
26... Kxg7 {[%clk 0:00:58]} 27. Rxd5 {[%clk 0:00:13.8]} 27... Re8 {[%clk
0:00:41.2]} 28. Rfd1 {[%clk 0:00:13.7]} 28... Rf7 {[%clk 0:00:21.1]} 29. Qg5
{[%clk 0:00:13.4]} 29... Qe4 {[%clk 0:00:14.2]} 30. Rd6 {[%clk 0:00:11.9]} 30...
Ne5 {[%clk 0:00:13.6]} 31. Kf1 {[%clk 0:00:02.8]} 31... Qh1+ {[%clk 0:00:13.1]}
32. Ke2 {[%clk 0:00:02.9]} 32... Qf3+ {[%clk 0:00:13.4]} 33. Ke1 {[%clk
0:00:03.6]} 33... Qh1+ {[%clk 0:00:12.3]} 34. Ke2 {[%clk 0:00:03.4]} 34... Qf3+
{[%clk 0:00:12.7]} 35. Kd2 {[%clk 0:00:03.8]} 35... Nc4+ {[%clk 0:00:12.3]} 36.
Kc1 {[%clk 0:00:04.2]} 36... Nxd6 {[%clk 0:00:11.9]} 37. Qh6+ {[%clk 0:00:04.7]}
37... Kg8 {[%clk 0:00:10.7]} 38. Rxd6 {[%clk 0:00:05.2]} 38... Rc8+ {[%clk
0:00:09.2]} 39. Kd2 {[%clk 0:00:05.1]} 39... Qf5 {[%clk 0:00:07.3]} 40. Rxg6+
{[%clk 0:00:05]} 40... Qxg6 {[%clk 0:00:05.8]} 41. Qxg6+ {[%clk 0:00:05.4]}
41... Rg7 {[%clk 0:00:06.4]} 42. Qe6+ {[%clk 0:00:05.6]} 42... Kh7 {[%clk
0:00:07.1]} 43. Qxc8 {[%clk 0:00:05.9]} 43... a4 {[%clk 0:00:07.9]} 44. Qf5+
{[%clk 0:00:06.2]} 44... Rg6 {[%clk 0:00:07.9]} 45. Qf7+ {[%clk 0:00:06.3]}
45... Rg7 {[%clk 0:00:07.7]} 46. Qf5+ {[%clk 0:00:06.4]} 46... Rg6 {[%clk
0:00:08.3]} 47. Qh5+ {[%clk 0:00:06.1]} 47... Kg7 {[%clk 0:00:06.2]} 48. Bd4+
{[%clk 0:00:06.6]} 48... Kf7 {[%clk 0:00:06.4]} 49. Qh7+ {[%clk 0:00:06.8]} 1-0

[Event "Late-Titled-Tuesday-Blitz-February-20-2024"]
[Site "Chess.com"]
[Date "2024.02.20"]
[Round "1"]
[White "vugarrasulov"]
[Black "Vasily85"]
[Result "1-0"]
[WhiteElo "2927"]
[BlackElo "2470"]
[TimeControl "180+1"]
[EndTime "14:08:10 PST"]
[Termination "vugarrasulov won by resignation"]

1. Nf3 {[%clk 0:03:00.8]} 1... Nf6 {[%clk 0:02:50.6]} 2. c4 {[%clk 0:03:00.3]}
2... e6 {[%clk 0:02:50.1]} 3. g3 {[%clk 0:02:59.9]} 3... d5 {[%clk 0:02:50]} 4.
Bg2 {[%clk 0:03:00.5]} 4... Be7 {[%clk 0:02:49.2]} 5. O-O {[%clk 0:03:00]} 5...
O-O {[%clk 0:02:49.7]} 6. b3 {[%clk 0:02:58.7]} 6... c5 {[%clk 0:02:49]} 7. cxd5
{[%clk 0:02:57.5]} 7... Nxd5 {[%clk 0:02:49.9]} 8. Bb2 {[%clk 0:02:56.1]} 8...
Nc6 {[%clk 0:02:46.9]} 9. Nc3 {[%clk 0:02:56.2]} 9... Bf6 {[%clk 0:02:29.9]} 10.
Qc1 {[%clk 0:02:49.3]} 10... b6 {[%clk 0:02:24.4]} 11. Nxd5 {[%clk 0:02:43.2]}
11... exd5 {[%clk 0:02:24]} 12. d4 {[%clk 0:02:35]} 12... Nxd4 {[%clk 0:02:17]}
13. Nxd4 {[%clk 0:02:33.8]} 13... cxd4 {[%clk 0:02:17.4]} 14. Qd2 {[%clk
0:02:30.7]} 14... Re8 {[%clk 0:02:05.7]} 15. Rfe1 {[%clk 0:02:23.6]} 15... Ba6
{[%clk 0:01:59.7]} 16. Bf3 {[%clk 0:02:19.4]} 16... d3 {[%clk 0:01:52.2]} 17.
exd3 {[%clk 0:02:02.6]} 17... Bxb2 {[%clk 0:01:17]} 18. Qxb2 {[%clk 0:01:51.5]}
18... Bxd3 {[%clk 0:01:16.3]} 19. Rxe8+ {[%clk 0:01:29.2]} 19... Qxe8 {[%clk
0:01:17.2]} 20. Bxd5 {[%clk 0:01:29.1]} 20... Rd8 {[%clk 0:01:17.4]} 21. Bf3
{[%clk 0:01:27.9]} 21... Bf5 {[%clk 0:01:02.2]} 22. h4 {[%clk 0:01:25.4]} 22...
h6 {[%clk 0:01:00.7]} 23. Qc3 {[%clk 0:01:23]} 23... Qd7 {[%clk 0:00:59.6]} 24.
Re1 {[%clk 0:01:13]} 24... Qd3 {[%clk 0:00:51.9]} 25. Qxd3 {[%clk 0:01:00.6]}
25... Rxd3 {[%clk 0:00:52.8]} 26. Kg2 {[%clk 0:01:01.1]} 26... Bh3+ {[%clk
0:00:50.2]} 27. Kxh3 {[%clk 0:01:00.5]} 27... Rxf3 {[%clk 0:00:51.1]} 28. Kg2
{[%clk 0:00:58.7]} 28... Rf6 {[%clk 0:00:44.8]} 29. Re8+ {[%clk 0:00:49.9]}
29... Kh7 {[%clk 0:00:44.7]} 30. Re7 {[%clk 0:00:50.8]} 30... a5 {[%clk
0:00:44.1]} 31. f4 {[%clk 0:00:49.9]} 31... h5 {[%clk 0:00:43.3]} 32. Kf3 {[%clk
0:00:49]} 32... Kg6 {[%clk 0:00:43.4]} 33. Ke4 {[%clk 0:00:41.8]} 33... Rc6
{[%clk 0:00:40.9]} 34. Rb7 {[%clk 0:00:40.4]} 34... f6 {[%clk 0:00:26.8]} 35.
f5+ {[%clk 0:00:36.8]} 35... Kh6 {[%clk 0:00:26.3]} 36. Rb8 {[%clk 0:00:35]}
36... Kh7 {[%clk 0:00:26.9]} 37. Kd3 {[%clk 0:00:32.6]} 37... Rd6+ {[%clk
0:00:13.7]} 38. Kc4 {[%clk 0:00:31.9]} 38... Rd2 {[%clk 0:00:13.9]} 39. a4
{[%clk 0:00:31.3]} 39... Rg2 {[%clk 0:00:13.7]} 40. Rxb6 {[%clk 0:00:31.5]}
40... Rxg3 {[%clk 0:00:14.4]} 41. Rb5 {[%clk 0:00:17.7]} 41... Rg4+ {[%clk
0:00:15.1]} 42. Kc3 {[%clk 0:00:17.4]} 42... Rxh4 {[%clk 0:00:15.8]} 43. Rxa5
{[%clk 0:00:18.2]} 43... Rf4 {[%clk 0:00:08.4]} 44. Rd5 {[%clk 0:00:18]} 44...
h4 {[%clk 0:00:08.8]} 45. a5 {[%clk 0:00:17.4]} 45... h3 {[%clk 0:00:06.7]} 46.
Rd3 {[%clk 0:00:17.2]} 46... Rh4 {[%clk 0:00:06.8]} 47. Rd1 {[%clk 0:00:17.8]}
47... Kh6 {[%clk 0:00:04.2]} 48. a6 {[%clk 0:00:17.2]} 48... Kg5 {[%clk
0:00:04.9]} 49. b4 {[%clk 0:00:14.6]} 49... h2 {[%clk 0:00:01.9]} 50. Rh1 {[%clk
0:00:13.9]} 50... Kg4 {[%clk 0:00:02]} 51. b5 {[%clk 0:00:14.4]} 51... Kg3
{[%clk 0:00:02.2]} 52. a7 {[%clk 0:00:14.6]} 52... Rh8 {[%clk 0:00:02.7]} 53. b6
{[%clk 0:00:15.2]} 53... Rc8+ {[%clk 0:00:03.3]} 54. Kb4 {[%clk 0:00:13.9]}
54... Kg2 {[%clk 0:00:03.4]} 55. Rxh2+ {[%clk 0:00:14.4]} 55... Kxh2 {[%clk
0:00:04.3]} 56. b7 {[%clk 0:00:15.1]} 1-0